bitfinex/quotes_SOLUSD_20250831
["timestamp","ask_amount","ask_price","bid_price","bid_amount"]
[1756636534291,26.68,203.63,203.58,0.67]
[1756636534791,0.68,203.62,203.57,42.99222466]
[1756636534988,0.68,203.62,203.57,43.66222466]
[1756636535284,0.68,203.61,203.57,38.75]
[1756636536265,26.0,203.63,203.58,0.67]
[1756636536796,0.68,203.62,203.58,0.67]
[1756636537091,26.68,203.62,203.58,0.67]
[1756636537473,26.0,203.62,203.57,164.9922943]
[1756636537773,0.06,203.64,203.59,0.67]
[1756636538384,0.06,203.64,203.6,4.91159135]
[1756636538568,0.06,203.64,203.61,0.67]
[1756636538774,0.06,203.64,203.62,38.08]
[1756636538967,0.06,203.64,203.63,0.67]
[1756636539466,0.06,203.64,203.62,38.08]
[1756636539668,0.06,203.64,203.62,38.75]
[1756636540176,0.06,203.64,203.63,38.08]
[1756636540572,0.06,203.64,203.63,38.75]
[1756636541280,0.06,203.64,203.63,43.66086775]
[1756636542168,0.06,203.64,203.63,38.08]
[1756636542364,0.06,203.64,203.6,0.67]
[1756636542590,0.06,203.64,203.6,5.58155953]
[1756636542887,0.06,203.64,203.61,38.08]
[1756636543089,0.06,203.64,203.61,38.75]
[1756636543302,0.06,203.64,203.62,0.67]
[1756636543506,0.06,203.64,203.62,122.67]
[1756636543702,0.06,203.64,203.63,0.67]
[1756636544796,0.06,203.64,203.63,5.58086775]
[1756636547590,0.06,203.64,203.63,19.17646176]
[1756636548609,0.06,203.64,203.63,57.25646176]
[1756636549409,0.06,203.64,203.63,179.25646176]
[1756636555007,0.06,203.64,203.63,179.23646176]
[1756636556921,0.06,203.67,203.63,127.58086775]
[1756636557128,0.06,203.67,203.64,13.59559401]
[1756636557422,0.68,203.66,203.65,38.06]
[1756636557628,0.06,203.67,203.65,38.06]
[1756636557795,0.68,203.66,203.63,126.91086775]
[1756636558002,0.68,203.65,203.63,126.91086775]
[1756636558203,0.68,203.65,203.64,38.06]
[1756636558532,0.74,203.67,203.64,38.06]
[1756636558828,0.68,203.66,203.64,42.97059295]
[1756636559199,0.68,203.65,203.64,42.97059295]
[1756636559625,0.68,203.65,203.63,126.91084953]
[1756636559816,0.68,203.65,203.64,38.06]
[1756636561009,0.68,203.65,203.63,122.0]
[1756636561207,0.68,203.64,203.63,122.0]
[1756636561409,0.68,203.64,203.63,38.06]
[1756636561611,26.68,203.64,203.63,38.06]
[1756636562944,0.68,203.64,203.63,38.06]
[1756636563108,0.68,203.64,203.55,0.03]
[1756636563307,5.59063491,203.64,203.55,4.94275692]
[1756636563509,5.59063491,203.64,203.56,38.06]
[1756636563510,0.7,203.63,203.56,38.06]
[1756636563927,0.7,203.62,203.6,0.03]
[1756636564132,0.7,203.62,203.6,38.09]
[1756636564336,0.7,203.61,203.6,38.09]
[1756636564538,0.7,203.63,203.6,38.09]
[1756636564721,0.06,203.65,203.6,38.09]
[1756636564915,0.7,203.64,203.6,38.09]
[1756636565240,26.06,203.65,203.61,4.91135013]
[1756636565421,0.7,203.64,203.61,4.91135013]
[1756636565624,26.06,203.65,203.61,4.91135013]
[1756636565821,0.7,203.63,203.6,0.03]
[1756636566022,0.7,203.63,203.6,38.09]
[1756636566243,26.7,203.62,203.6,38.09]
[1756636566421,0.7,203.61,203.6,38.09]
[1756636568123,26.7,203.61,203.6,38.09]
[1756636571626,31.61135013,203.61,203.6,0.03]
[1756636572024,33.57999913,203.61,203.6,0.03]
[1756636575467,2.668649,203.61,203.6,0.03]
[1756636575620,0.7,203.61,203.6,0.03]
[1756636577543,5.61135013,203.61,203.6,0.03]
[1756636577741,20.37621913,203.61,203.6,0.03]
[1756636578744,5.61135013,203.61,203.6,0.03]
[1756636582342,20.37694613,203.61,203.6,0.03]
[1756636588568,46.37694613,203.61,203.6,0.03]
[1756636588864,33.97254014,203.61,203.6,0.03]
[1756636589051,37.22649509,203.61,203.6,0.03]
[1756636589365,26.0,203.58,203.57,0.03]
[1756636589865,26.7,203.58,203.57,0.03]
[1756636590036,41.469231,203.58,203.57,0.03]
[1756636590436,46.38130487,203.58,203.57,0.03]
[1756636592670,46.38130487,203.58,203.52,0.03]
[1756636592671,26.0,203.54,203.52,0.03]
[1756636592851,26.0,203.53,203.52,0.03]
[1756636593170,26.71,203.53,203.52,0.03]
[1756636593373,28.679813,203.53,203.52,0.03]
[1756636593546,2.679813,203.53,203.52,0.03]
[1756636594671,7.59309359,203.53,203.52,0.03]
[1756636595671,11.61471716,203.53,203.52,0.03]
[1756636597370,6.88309359,203.53,203.52,0.03]
[1756636597564,7.59309359,203.53,203.52,0.03]
[1756636597883,26.0,203.49,203.48,0.03]
[1756636598287,31.6242464,203.49,203.48,0.03]
[1756636598571,36.5408644,203.49,203.48,0.03]
[1756636604662,35.8308644,203.49,203.48,0.03]
[1756636605061,36.5408644,203.49,203.48,0.03]
[1756636607263,35.8308644,203.49,203.48,0.03]
[1756636608280,36.5408644,203.49,203.48,0.03]
[1756636609464,35.8308644,203.49,203.48,0.03]
[1756636610465,36.5408644,203.49,203.48,0.03]
[1756636613067,35.8308644,203.49,203.48,0.03]
[1756636613272,30.916618,203.49,203.48,0.71]
[1756636613892,30.916618,203.49,203.48,0.03]
[1756636614586,4.916618,203.49,203.48,0.71]
[1756636615382,4.916618,203.49,203.48,0.03]
[1756636615778,4.916618,203.49,203.48,0.71]
[1756636617394,9.8308644,203.49,203.48,0.03]
[1756636618506,4.916618,203.49,203.48,0.71]
[1756636618681,30.916618,203.49,203.48,0.71]
[1756636619577,4.916618,203.49,203.48,0.71]
[1756636620383,26.06,203.52,203.48,0.71]
[1756636620588,1.969619,203.5,203.48,0.71]
[1756636621174,1.969619,203.5,203.49,0.68]
[1756636621376,27.969619,203.5,203.49,0.68]
[1756636621898,0.06,203.52,203.49,0.68]
[1756636623381,0.06,203.52,203.49,5.59416083]
[1756636623577,0.06,203.52,203.5,0.68]
[1756636624414,0.06,203.52,203.5,5.59388679]
[1756636624778,0.06,203.52,203.51,0.68]
[1756636624981,0.06,203.52,203.48,0.71]
[1756636625303,0.06,203.52,203.49,0.68]
[1756636626909,0.06,203.52,203.48,0.03]
[1756636627110,0.06,203.52,203.5,0.68]
[1756636627607,0.06,203.52,203.48,0.03]
[1756636627794,0.06,203.52,203.48,0.71]
[1756636628392,0.06,203.52,203.48,0.03]
[1756636628601,0.65,203.51,203.48,0.03]
[1756636628810,15.423595,203.51,203.48,0.03]
[1756636629190,4.91400491,203.5,203.48,0.03]
[1756636629391,5.56400491,203.5,203.48,0.03]
[1756636629690,0.65,203.49,203.48,0.03]
[1756636631012,31.5642464,203.49,203.48,0.03]
[1756636632617,33.5341564,203.49,203.48,0.03]
[1756636633501,32.8841564,203.49,203.48,0.03]
[1756636634395,33.5341564,203.49,203.48,0.03]
[1756636635099,32.8841564,203.49,203.48,0.03]
[1756636635298,1.96991,203.49,203.48,0.03]
[1756636635535,7.5341564,203.49,203.48,0.03]
[1756636640410,10.79810527,203.49,203.48,0.03]
[1756636642909,26.0,203.46,203.45,0.03]
[1756636643104,42.85844269,203.46,203.43,0.03]
[1756636643327,26.0,203.41,203.34,0.68]
[1756636643525,26.0,203.39,203.34,0.68]
[1756636643725,26.65,203.39,203.35,0.68]
[1756636643904,26.65,203.39,203.33,0.68]
[1756636644105,26.0,203.35,203.33,0.68]
[1756636644633,26.0,203.35,203.34,0.68]
[1756636645218,13.595594,203.38,203.34,0.68]
[1756636645426,0.65,203.43,203.34,0.68]
[1756636645427,26.0,203.42,203.34,0.68]
[1756636646010,26.0,203.42,203.34,122.68]
[1756636646321,39.595594,203.42,203.35,0.68]
[1756636646708,39.595594,203.42,203.35,5.59761157]
[1756636646919,39.595594,203.42,203.36,0.68]
[1756636647143,13.595594,203.42,203.36,0.68]
[1756636647325,0.65,203.47,203.36,0.68]
[1756636647530,39.595594,203.44,203.36,0.68]
[1756636647927,13.595594,203.44,203.36,0.68]
[1756636648241,0.65,203.49,203.36,0.68]
[1756636648423,17.55977776,203.49,203.36,0.68]
[1756636648625,26.0,203.46,203.36,0.68]
[1756636648934,26.65,203.46,203.37,4.91714608]
[1756636649141,0.65,203.46,203.38,0.68]
[1756636649446,40.776505,203.45,203.38,0.68]
[1756636650338,26.0,203.45,203.38,0.68]
[1756636650731,26.0,203.45,203.39,4.91666256]
[1756636651048,26.0,203.45,203.4,0.68]
[1756636651545,26.65,203.45,203.4,0.68]
[1756636651846,0.7,203.44,203.4,0.68]
[1756636652253,0.7,203.44,203.39,4.91666256]
[1756636652453,0.7,203.44,203.4,0.67]
[1756636652742,26.0,203.45,203.41,0.67]
[1756636652922,0.7,203.44,203.39,122.0]
[1756636653244,26.0,203.45,203.4,0.67]
[1756636653455,26.7,203.45,203.4,0.67]
[1756636654037,26.0,203.42,203.41,0.67]
[1756636654236,26.7,203.47,203.42,0.67]
[1756636654442,26.0,203.43,203.42,0.67]
[1756636654648,14.775777,203.46,203.4,38.12]
[1756636654852,26.0,203.5,203.43,0.67]
[1756636655155,26.0,203.44,203.43,0.67]
[1756636655332,0.7,203.47,203.41,0.67]
[1756636655536,0.06,203.45,203.4,43.03642084]
[1756636655742,0.06,203.45,203.41,0.67]
[1756636656047,0.06,203.45,203.42,0.67]
[1756636656545,0.06,203.45,203.41,0.67]
[1756636656751,0.06,203.45,203.42,0.67]
[1756636657425,26.0,203.43,203.4,43.03642084]
[1756636658060,26.0,203.43,203.41,0.67]
[1756636658254,26.0,203.43,203.42,0.67]
[1756636658423,26.0,203.43,203.42,5.58593746]
[1756636663662,26.06,203.45,203.42,127.58593746]
[1756636665177,26.06,203.45,203.43,0.67]
[1756636665178,0.06,203.45,203.43,0.67]
[1756636665470,0.06,203.45,203.44,38.1]
[1756636665643,0.06,203.45,203.44,43.01545418]
[1756636665845,0.06,203.45,203.44,43.68545418]
[1756636669461,0.06,203.45,203.44,165.68545418]
[1756636670850,0.06,203.45,203.44,179.28104819]
[1756636672057,1e-08,203.45,203.44,179.28104819]
[1756636678878,0.06,203.48,203.44,179.28104819]
[1756636678879,1e-08,203.48,203.45,13.59559401]
[1756636679081,1e-08,203.48,203.46,38.5714971]
[1756636679288,1e-08,203.48,203.46,39.2414971]
[1756636679581,1e-08,203.48,203.47,0.67]
[1756636679954,1e-08,203.48,203.47,5.58472944]
[1756636680258,1e-08,203.48,203.47,7.55366844]
[1756636681883,1e-08,203.48,203.47,21.14926245]
[1756636684780,1e-08,203.48,203.47,143.14926245]
[1756636687388,1e-08,203.48,203.47,169.14926245]
[1756636693992,0.69000001,203.48,203.47,126.91472944]
[1756636694295,0.69000001,203.48,203.47,164.97472944]
[1756636698505,0.69000001,203.48,203.47,178.57032345]
[1756636702089,1e-08,203.48,203.47,179.23032345]
[1756636702392,1e-08,203.48,203.47,181.25965145]
[1756636703192,1e-08,203.48,203.47,59.25965145]
[1756636703508,1e-08,203.48,203.47,79.75112439]
[1756636703703,1e-08,203.48,203.47,94.52112439]
[1756636703881,1e-08,203.48,203.47,79.25965145]
[1756636704206,0.06,203.52,203.48,13.59559401]
[1756636704509,0.06,203.52,203.49,38.55142464]
[1756636704707,0.06,203.52,203.49,39.21142464]
[1756636705377,0.06,203.52,203.51,13.59559401]
[1756636705585,0.69,203.54,203.51,52.14697035]
[1756636706198,0.69,203.54,203.51,174.14697035]
[1756636706396,0.06,203.55,203.51,174.31559401]
[1756636706626,0.06,203.57,203.53,13.59559401]
[1756636706908,0.06,203.57,203.54,38.55130392]
[1756636707215,0.06,203.57,203.54,39.21130392]
[1756636707388,1e-08,203.58,203.57,13.59559401]
[1756636707588,1e-08,203.58,203.57,52.14682552]
[1756636709502,1e-08,203.58,203.57,57.05914069]
[1756636710498,1e-08,203.61,203.6,39.59559401]
[1756636710815,1e-08,203.61,203.6,78.14675314]
[1756636711202,1e-08,203.61,203.6,80.77433714]
[1756636711596,1e-08,203.61,203.6,20.96592849]
[1756636711797,0.69000001,203.61,203.6,57.05834449]
[1756636712320,1e-08,203.61,203.6,57.05834449]
[1756636713194,1e-08,203.61,203.6,57.70834449]
[1756636714826,1e-08,203.61,203.6,179.70834449]
[1756636715127,1e-08,203.61,203.6,178.56718536]
[1756636717525,1e-08,203.61,203.6,180.53476936]
[1756636718417,0.69000001,203.61,203.6,142.47476936]
[1756636718618,1e-08,203.61,203.6,180.51476936]
[1756636718808,0.69000001,203.61,203.6,180.51476936]
[1756636719006,0.69000001,203.61,203.6,178.54718536]
[1756636720307,0.69000001,203.61,203.6,140.50718536]
[1756636720512,0.69000001,203.61,203.6,178.54718536]
[1756636720731,1e-08,203.61,203.6,178.54718536]
[1756636724419,1e-08,203.61,203.6,180.51477036]
[1756636728040,1e-08,203.61,203.6,180.54477036]
[1756636729640,1e-08,203.61,203.6,181.19477036]
[1756636733922,0.06,203.63,203.61,13.59559401]
[1756636734132,0.75,203.63,203.62,38.51111089]
[1756636734626,0.06,203.63,203.62,38.51111089]
[1756636734820,0.06,203.63,203.62,52.1067049]
[1756636735226,0.06,203.63,203.62,57.01781382]
[1756636735824,0.75,203.63,203.62,18.99781382]
[1756636736230,0.75,203.63,203.62,56.52670293]
[1756636736431,0.75,203.63,203.62,51.61559401]
[1756636736628,0.75,203.63,203.62,56.52670293]
[1756636737122,0.75,203.63,203.62,178.52670293]
[1756636738837,0.75,203.63,203.62,140.50670293]
[1756636739145,0.75,203.63,203.62,164.93110892]
[1756636740031,0.75,203.63,203.62,163.97110892]
[1756636740231,0.75,203.63,203.62,122.0]
[1756636740529,0.75,203.63,203.62,38.02]
[1756636740927,0.75,203.63,203.6,0.03]
[1756636741141,0.75,203.63,203.61,38.02]
[1756636741449,0.69,203.62,203.61,38.02]
[1756636742644,0.69,203.62,203.6,0.03]
[1756636743025,0.69,203.62,203.61,38.02]
[1756636743627,0.69,203.62,203.6,0.03]
[1756636743941,0.69,203.62,203.61,38.02]
[1756636745936,0.06,203.63,203.61,42.93135013]
[1756636746249,0.7,203.62,203.61,42.93135013]
[1756636746639,0.7,203.62,203.61,164.93135013]
[1756636746829,0.7,203.62,203.61,164.96135013]
[1756636747348,0.7,203.62,203.61,160.05]
[1756636748455,0.7,203.62,203.61,164.96135013]
[1756636748843,0.06,203.63,203.61,164.96135013]
[1756636750554,0.06,203.63,203.61,42.96135013]
[1756636750744,0.76,203.63,203.61,42.96135013]
[1756636751544,0.7,203.62,203.61,42.96135013]
[1756636753638,0.06,203.63,203.61,164.96135013]
[1756636753944,0.06,203.63,203.62,0.67]
[1756636754456,0.06,203.63,203.62,19.66781382]
[1756636755360,0.01290529,203.63,203.62,19.66781382]
[1756636756039,0.01290529,203.63,203.62,57.01781382]
[1756636756760,0.71290529,203.63,203.62,56.52670293]
[1756636756961,0.01290529,203.63,203.62,56.52670293]
[1756636758665,0.01290529,203.63,203.62,57.68781382]
[1756636759959,0.01290529,203.63,203.62,179.01781382]
[1756636760164,0.01290529,203.63,203.62,178.52670293]
[1756636760571,0.01290529,203.63,203.62,179.19670293]
[1756636762468,0.71290529,203.63,203.62,126.91110892]
[1756636762674,0.71290529,203.63,203.62,164.93110892]
[1756636765288,0.71290529,203.63,203.62,164.96110892]
[1756636765784,0.71290529,203.63,203.62,42.96110892]
[1756636768719,0.71290529,203.63,203.62,164.96110892]
[1756636770306,0.01290529,203.63,203.62,164.96110892]
[1756636772512,0.01290529,203.63,203.62,179.24670293]
[1756636772683,0.01290529,203.63,203.62,178.55670293]
[1756636776413,0.01290529,203.63,203.62,122.03]
[1756636776711,0.71290529,203.63,203.62,38.03]
[1756636779611,0.71290529,203.63,203.62,160.03]
[1756636779919,0.71290529,203.63,203.62,38.03]
[1756636780785,0.71290529,203.63,203.62,38.0]
[1756636781210,5.62388339,203.63,203.54,2.028165]
[1756636781512,0.7,203.62,203.55,38.0]
[1756636781685,0.7,203.62,203.56,38.0]
[1756636781885,0.7,203.61,203.56,38.0]
[1756636782089,0.01290529,203.63,203.56,38.0]
[1756636782090,0.7,203.6,203.56,38.0]
[1756636782413,0.7,203.59,203.56,38.0]
[1756636783100,0.7,203.59,203.56,160.0]
[1756636783300,0.7,203.59,203.57,4.94231517]
[1756636783512,0.7,203.59,203.58,38.0]
[1756636784211,0.01290529,203.63,203.58,38.0]
[1756636784392,0.7,203.6,203.58,38.0]
[1756636784596,31.63678829,203.63,203.59,0.69]
[1756636784805,26.0,203.61,203.6,38.0]
[1756636785208,0.71290529,203.63,203.6,38.0]
[1756636785409,26.0,203.61,203.6,38.0]
[1756636786230,26.0,203.61,203.6,42.91159135]
[1756636786532,26.7,203.61,203.6,42.91159135]
[1756636787703,26.7,203.61,203.6,38.0]
[1756636789400,26.7,203.61,203.6,160.0]
[1756636790328,26.7,203.61,203.57,4.94208264]
[1756636790627,0.7,203.6,203.58,38.02]
[1756636792602,26.0,203.61,203.59,4.9118326]
[1756636792804,26.0,203.61,203.6,38.0]
[1756636793121,26.7,203.61,203.6,38.0]
[1756636793308,26.7,203.61,203.6,160.0]
[1756636799131,26.7,203.61,203.6,122.0]
[1756636799326,0.7,203.61,203.6,38.0]
[1756636799911,0.76,203.61,203.57,0.03]
[1756636800114,0.76,203.61,203.58,38.0]
[1756636800314,0.7,203.6,203.58,38.0]
[1756636800518,0.7,203.59,203.58,38.0]
[1756636802234,0.7,203.59,203.58,160.0]
[1756636805213,0.7,203.59,203.58,38.0]
[1756636805413,0.76,203.61,203.58,38.0]
[1756636805825,0.7,203.6,203.58,38.0]
[1756636806024,0.06,203.61,203.58,38.0]
[1756636806224,0.7,203.6,203.58,38.0]
[1756636808325,0.7,203.6,203.58,160.0]
[1756636809236,0.06,203.61,203.58,164.91206555]
[1756636809420,0.06,203.61,203.58,165.61206555]
[1756636811229,0.06,203.61,203.58,43.61206555]
[1756636812246,0.06,203.61,203.59,0.7]
[1756636812549,0.06,203.61,203.6,38.0]
[1756636812714,26.06,203.61,203.6,38.0]
[1756636813143,26.06,203.61,203.6,42.91159135]
[1756636814338,26.06,203.61,203.6,165.61159135]
[1756636814539,26.76,203.61,203.6,38.0]
[1756636815041,0.76,203.61,203.6,38.0]
[1756636816617,26.0,203.58,203.57,0.03]
[1756636816822,26.0,203.58,203.57,38.03]
[1756636817129,26.7,203.58,203.57,38.03]
[1756636818216,5.61207387,203.58,203.57,0.03]
[1756636818630,20.37694287,203.58,203.57,0.03]
[1756636838364,33.97253688,203.58,203.57,0.03]
[1756636838552,26.0,203.55,203.52,0.03]
[1756636838760,26.0,203.54,203.52,0.03]
[1756636838939,26.66,203.54,203.52,0.03]
[1756636839138,0.66,203.53,203.52,0.03]
[1756636839453,5.57328059,203.53,203.52,0.03]
[1756636839655,40.770685,203.53,203.52,0.68]
[1756636841163,40.770685,203.53,203.52,0.03]
[1756636841764,26.0,203.53,203.52,0.03]
[1756636841944,27.969231,203.53,203.52,0.03]
[1756636843341,7.54251159,203.53,203.52,0.03]
[1756636849272,7.54251159,203.53,203.52,1e-08]
[1756636849273,47.1381056,203.53,203.52,1e-08]
[1756636849444,24.40234667,203.53,203.52,1e-08]
[1756636850071,50.40234667,203.53,203.52,1e-08]
[1756636850257,24.40234667,203.53,203.52,1e-08]
[1756636851075,62.40234667,203.53,203.52,1e-08]
[1756636853170,24.40234667,203.53,203.52,1e-08]
[1756636853347,6.88251159,203.53,203.52,1e-08]
[1756636855245,1.969231,203.53,203.52,0.65000001]
[1756636855759,27.969231,203.53,203.52,0.65000001]
[1756636857485,1.969231,203.53,203.52,0.65000001]
[1756636857784,14.768503,203.54,203.52,0.65000001]
[1756636858273,14.768503,203.54,203.53,0.65]
[1756636858977,14.768503,203.54,203.52,1e-08]
[1756636859168,14.768503,203.54,203.52,0.65000001]
[1756636859371,14.768503,203.54,203.53,0.65]
[1756636859678,20.3415422,203.54,203.52,1e-08]
[1756636860178,5.5730392,203.54,203.52,1e-08]
[1756636860387,1.969522,203.53,203.52,1e-08]
[1756636860685,2.629522,203.53,203.52,1e-08]
[1756636861670,7.54280259,203.53,203.52,1e-08]
[1756636862180,6.88280259,203.53,203.52,1e-08]
[1756636862883,7.55280259,203.53,203.52,1e-08]
[1756636863479,21.1483966,203.53,203.52,1e-08]
[1756636863667,24.42238395,203.53,203.52,1e-08]
[1756636867173,24.48238395,203.53,203.52,1e-08]
[1756636877978,62.48238395,203.53,203.52,1e-08]
[1756636879808,24.48238395,203.53,203.52,1e-08]
[1756636879985,62.46238395,203.53,203.52,1e-08]
[1756636880707,61.81238395,203.53,203.52,1e-08]
[1756636880884,62.48238395,203.53,203.52,1e-08]
[1756636882686,24.48238395,203.53,203.52,1e-08]
[1756636882887,62.46238395,203.53,203.52,1e-08]
[1756636884203,85.86335204,203.53,203.52,1e-08]
[1756636884733,65.86335204,203.53,203.52,1e-08]
[1756636888415,65.19335204,203.53,203.52,1e-08]
[1756636889000,65.86335204,203.53,203.52,1e-08]
[1756636889733,27.88335204,203.53,203.52,1e-08]
[1756636889901,65.86335204,203.53,203.52,1e-08]
[1756636890103,27.21335204,203.53,203.52,1e-08]
[1756636890430,65.19335204,203.53,203.52,1e-08]
[1756636892811,65.91335204,203.53,203.52,1e-08]
[1756636896836,65.19335204,203.53,203.52,1e-08]
[1756636897211,65.91335204,203.53,203.52,1e-08]
[1756636899238,27.21335204,203.53,203.52,1e-08]
[1756636899454,65.19335204,203.53,203.52,1e-08]
[1756636900347,27.21335204,203.53,203.52,1e-08]
[1756636900515,65.19335204,203.53,203.52,1e-08]
[1756636902821,65.91335204,203.53,203.52,1e-08]
[1756636904144,70.00234296,203.53,203.52,1e-08]
[1756636905136,69.28234296,203.53,203.52,1e-08]
[1756636905619,70.00234296,203.53,203.52,1e-08]
[1756636906332,69.28234296,203.53,203.52,1e-08]
[1756636908224,39.59559401,203.51,203.5,0.71]
[1756636908437,54.84958136,203.51,203.5,0.71]
[1756636909526,4.91400491,203.5,203.49,0.03]
[1756636909719,8.18799226,203.5,203.49,0.74]
[1756636910419,10.15799926,203.5,203.49,0.74]
[1756636915840,10.15799926,203.5,203.49,0.03]
[1756636917460,23.75359327,203.5,203.49,0.03]
[1756636918155,24.47359327,203.5,203.49,0.03]
[1756636919257,26.0,203.48,203.47,0.03]
[1756636919566,67.23398735,203.48,203.47,0.03]
[1756636919734,81.54958136,203.48,203.47,0.03]
[1756636919933,83.51978236,203.48,203.47,0.03]
[1756636921354,88.43427027,203.48,203.47,0.03]
[1756636922458,87.71427027,203.48,203.47,0.03]
[1756636923049,88.41427027,203.48,203.47,0.03]
[1756636923359,87.71427027,203.48,203.47,0.03]
[1756636923661,88.41427027,203.48,203.47,0.03]
[1756636936775,88.41427027,203.48,203.46,1e-08]
[1756636936776,13.59559401,203.47,203.46,1e-08]
[1756636936942,16.86958136,203.47,203.46,1e-08]
[1756636937148,17.56958136,203.47,203.46,1e-08]
[1756636937548,17.57409944,203.47,203.46,1e-08]
[1756636937768,22.48882888,203.47,203.46,1e-08]
[1756636937974,24.45961188,203.47,203.46,1e-08]
[1756636938347,23.75961188,203.47,203.46,1e-08]
[1756636938651,61.71961188,203.47,203.46,1e-08]
[1756636939372,62.41961188,203.47,203.46,1e-08]
[1756636941749,13.59559401,203.44,203.43,1e-08]
[1756636941951,54.83409944,203.44,203.43,1e-08]
[1756636942149,55.53409944,203.44,203.43,1e-08]
[1756636942363,70.31715744,203.44,203.43,1e-08]
[1756636943669,75.23261162,203.44,203.43,1e-08]
[1756636943853,99.32809423,203.44,203.43,1e-08]
[1756636944053,99.14985829,203.44,203.43,1e-08]
[1756636945591,101.91752408,203.44,203.43,1e-08]
[1756636946347,106.00608286,203.44,203.43,1e-08]
[1756636946948,101.91752408,203.44,203.43,1e-08]
[1756636947351,106.00481681,203.44,203.43,1e-08]
[1756636948372,48.04481681,203.44,203.43,1e-08]
[1756636948762,81.91752408,203.44,203.43,1e-08]
[1756636949068,106.00481681,203.44,203.43,1e-08]
[1756636950463,101.91752408,203.44,203.43,1e-08]
[1756636951073,106.00481681,203.44,203.43,1e-08]
[1756636953784,13.59559401,203.4,203.38,0.67]
[1756636953983,54.83409944,203.39,203.38,0.67]
[1756636954158,26.0,203.35,203.26,4.91975667]
[1756636954476,26.0,203.31,203.26,4.91975667]
[1756636954680,26.0,203.31,203.27,0.67]
[1756636954982,14.785973,203.33,203.27,5.58951043]
[1756636955170,4.91764458,203.35,203.28,0.67]
[1756636955582,26.0,203.33,203.28,0.67]
[1756636959670,26.0,203.33,203.28,5.58923563]
[1756636959984,26.0,203.36,203.29,0.67]
[1756636960159,40.783787,203.36,203.29,0.67]
[1756636960559,4.9176297,203.35,203.29,0.67]
[1756636961767,4.91811341,203.33,203.29,0.67]
[1756636962790,14.785973,203.32,203.29,0.67]
[1756636964286,26.0,203.32,203.3,0.67]
[1756636964487,40.785244,203.32,203.31,0.67]
[1756636964864,40.785244,203.32,203.25,126.91985126]
[1756636965080,40.785244,203.32,203.3,0.67]
[1756636965279,40.785244,203.32,203.25,126.91985126]
[1756636965461,40.785244,203.32,203.26,0.67]
[1756636967976,40.785244,203.32,203.26,5.58965401]
[1756636968176,40.785244,203.32,203.27,0.67]
[1756636968569,30.91815828,203.33,203.27,0.67]
[1756636968774,45.70340228,203.33,203.27,0.67]
[1756636969190,26.0,203.31,203.27,0.67]
[1756636969576,26.0,203.31,203.28,0.67]
[1756636969772,26.0,203.3,203.26,4.91965401]
[1756636970070,41.477431,203.3,203.25,0.67]
[1756636970286,41.477431,203.3,203.24,37.96]
[1756636970486,40.787431,203.3,203.22,0.1]
[1756636970686,0.69,203.29,203.22,0.77]